fUSD/lending_fUSD_20251102
["ID","MTS","AMOUNT","RATE_DAILY","PERIOD"]
[392844629,1762041601386,463.67992325,0.00014799,2]
[392844630,1762041601412,736.32007675,0.00014799,2]
[392844631,1762041608005,168.0,0.00014721,2]
[392844632,1762041745051,153.973885,0.00015,7]
[392844633,1762041780065,153.066413,0.00015,7]
[392844634,1762041802512,1092.0,0.00014765,2]
[392844635,1762041807581,1092.0,0.00014429,2]
[392844636,1762041812404,1092.0,0.00014429,2]
[392844637,1762041817215,1092.0,0.00014429,2]
[392844638,1762041870496,150.0,0.00030833,120]
[392844639,1762041901115,1200.0,0.00014799,2]
[392844640,1762041953206,500.0,0.00031232,120]
[392844641,1762041953480,500.0,0.00031506,120]
[392844642,1762041962470,150.0,0.00014799,2]
[392844643,1762041990543,150.0,0.00028209,120]
[392844644,1762042058697,430.97,0.00014021,2]
[392844645,1762042131608,1009.0,0.000147,2]
[392844646,1762042201652,1200.0,0.00014799,2]
[392844649,1762042232554,-10000.01,0.000148,2]
[392844650,1762042232564,-10000.01,0.000148,2]
[392844651,1762042232574,-168.0,0.00014814,2]
[392844652,1762042232584,-255.42723,0.0001483,2]
[392844653,1762042232593,-506.806,0.00014878,2]
[392844654,1762042232603,-150.0,0.00014879,2]
[392844655,1762042232613,-1000.0,0.0001488,2]
[392844656,1762042232622,-489.57439206,0.0001488,2]
[392844657,1762042232631,-1000.0,0.0001488,2]
[392844658,1762042232640,-4064.6282,0.0001488,2]
[392844659,1762042232649,-5000.0,0.0001488,2]
[392844660,1762042232658,-266.69147878,0.0001488,2]
[392844661,1762042232667,-422.26497646,0.0001488,2]
[392844662,1762042232676,-179.563374,0.0001488,2]
[392844663,1762042232686,-5162.09363357,0.0001488,2]
[392844664,1762042232695,-422.26497646,0.00014882,2]
[392844666,1762042232704,-422.26497646,0.00014884,2]
[392844667,1762042232713,-422.26497646,0.00014887,2]
[392844669,1762042232722,-422.26497646,0.00014889,2]
[392844671,1762042232731,-266.69147877,0.0001489,2]
[392844673,1762042232740,-422.26497646,0.00014891,2]
[392844675,1762042232750,-422.26497646,0.00014893,2]
[392844676,1762042232760,-422.26497646,0.00014896,2]
[392844678,1762042232769,-422.26497646,0.00014898,2]
[392844680,1762042232778,-266.69147877,0.000149,2]
[392844681,1762042232787,-422.26497646,0.000149,2]
[392844682,1762042232796,-1246.59938612,0.000149,2]
[392844683,1762042232805,-255.57423357,0.000149,2]
[392844684,1762042232814,-151.0,0.00014958,2]
[392844685,1762042232823,-1423.0,0.00014959,2]
[392844686,1762042232832,-620.0,0.00014961,2]
[392844687,1762042232841,-558.77204441,0.00014961,2]
[392844688,1762042232852,-500.0,0.00014961,2]
[392844689,1762042232871,-496.47127164,0.00014961,2]
[392844690,1762042232882,-250.0,0.00014961,2]
[392844691,1762042232891,-250.0,0.00014961,2]
[392844692,1762042232900,-250.0,0.00014961,2]
[392844693,1762042232909,-250.0,0.00014961,2]
[392844694,1762042232918,-250.0,0.00014961,2]
[392844695,1762042232927,-250.0,0.00014961,2]
[392844696,1762042232937,-250.0,0.00014961,2]
[392844697,1762042232945,-250.0,0.00014961,2]
[392844698,1762042233167,-250.0,0.00014961,2]
[392844699,1762042233176,-250.0,0.00014961,2]
[392844700,1762042233185,-250.0,0.00014961,2]
[392844701,1762042233195,-250.0,0.00014961,2]
[392844702,1762042233206,-250.0,0.00014961,2]
[392844703,1762042233215,-250.0,0.00014961,2]
[392844704,1762042233224,-250.0,0.00014961,2]
[392844705,1762042233233,-250.0,0.00014961,2]
[392844706,1762042233242,-250.0,0.00014961,2]
[392844707,1762042233251,-250.0,0.00014961,2]
[392844708,1762042233261,-250.0,0.00014961,2]
[392844709,1762042233270,-250.0,0.00014961,2]
[392844710,1762042233280,-820.0,0.0001497,2]
[392844711,1762042233289,-573.0,0.0001497,2]
[392844712,1762042233298,-1512.48043964,0.0001497,2]
[392844713,1762042233310,-1907.51956036,0.0001497,2]
[392844714,1762042233319,-607.0,0.0001497,2]
[392844715,1762042233328,-1485.48043964,0.0001497,2]
[392844723,1762042238290,-108.51956036,0.0001497,2]
[392844724,1762042238300,-1314.0,0.0001497,2]
[392844725,1762042238310,-1272.0,0.0001497,2]
[392844726,1762042238320,-819.0,0.0001497,2]
[392844727,1762042238331,-2140.0,0.0001497,2]
[392844728,1762042238341,-6468.0,0.0001497,2]
[392844729,1762042238351,-559.0,0.0001497,2]
[392844730,1762042238363,-6652.0,0.0001497,2]
[392844731,1762042238373,-255.42723,0.0001497,2]
[392844732,1762042238384,-197.13100696,0.0001497,2]
[392844733,1762042238394,-1000.0,0.00014972,2]
[392844734,1762042238405,-500.0,0.00014973,2]
[392844735,1762042238415,-173.42577262,0.00014973,2]
[392844736,1762042238425,-500.0,0.00014973,2]
[392844737,1762042238436,-500.0,0.00014973,2]
[392844738,1762042238447,-500.0,0.00014973,2]
[392844739,1762042238457,-500.0,0.00014973,2]
[392844740,1762042238467,-164.93108109,0.00014973,2]
[392844743,1762042238699,-478.86948301,0.00014973,2]
[392844744,1762042238710,-500.0,0.00014973,2]
[392844745,1762042238720,-500.0,0.00014973,2]
[392844746,1762042238729,-343.95617629,0.00014973,2]
[392844747,1762042238739,-500.0,0.00014973,2]
[392844749,1762042238749,-500.0,0.00014973,2]
[392844751,1762042238758,-500.0,0.00014973,2]
[392844753,1762042238767,-1438.561,0.00014973,2]
[392844755,1762042238776,-60.00755571,0.00014978,2]
[392844757,1762042238787,-94.99244429,0.00014978,2]
[392844759,1762042238796,-500.0,0.00014979,2]
[392844761,1762042238805,-500.0,0.00014979,2]
[392844763,1762042238815,-11.17051782,0.00014979,2]
[392844765,1762042238830,-488.82948218,0.00014979,2]
[392844767,1762042238839,-72.5621836,0.00014979,2]
[392844769,1762042238850,-77.4378164,0.00014979,2]
[392844771,1762042238865,-500.0,0.00014979,2]
[392844773,1762042238875,-150.0,0.00014979,2]
[392844775,1762042238884,-200.0,0.00014979,2]
[392844777,1762042238894,-150.0,0.00014979,2]
[392844779,1762042238905,-500.0,0.00014979,2]
[392844781,1762042238915,-500.0,0.00014979,2]
[392844783,1762042238924,-215.73232159,0.00014979,2]
[392844785,1762042238939,-400.0,0.00014979,2]
[392844787,1762042238949,-500.0,0.00014979,2]
[392844790,1762042238959,-500.0,0.00014979,2]
[392844792,1762042238968,-500.0,0.00014979,2]
[392844794,1762042238979,-500.0,0.00014979,2]
[392844796,1762042238988,-184.48407081,0.00014979,2]
[392844821,1762042240318,-203.95071823,0.000149,2]
[392844822,1762042240327,-315.51592919,0.00014979,2]
[392844823,1762042240337,-557.83920532,0.00014979,2]
[392844824,1762042240346,-150.28361694,0.00014979,2]
[392844825,1762042240356,-1300.0,0.0001498,2]
[392844826,1762042240365,-10245.35297582,0.0001498,2]
[392844827,1762042240483,-96344.62407905,0.0001498,2]
[392844828,1762042240493,-268275.27862086,0.0001498,2]
[392844829,1762042240629,-1502196.83506256,0.0001498,2]
[392844830,1762042240639,-1000.0,0.0001498,2]
[392844831,1762042240647,-1000.0,0.0001498,2]
[392844832,1762042240657,-1000.0,0.0001498,2]
[392844833,1762042240666,-1000.0,0.0001498,2]
[392844834,1762042240674,-1000.0,0.0001498,2]
[392844835,1762042240683,-1000.0,0.0001498,2]
[392844836,1762042240692,-1000.0,0.0001498,2]
[392844837,1762042240700,-1000.0,0.0001498,2]
[392844838,1762042240709,-1000.0,0.0001498,2]
[392844839,1762042240719,-845.09192012,0.0001498,2]
[392844840,1762042240727,-195315.23069001,0.0001498,2]
[392844841,1762042240736,-607.7883136,0.0001498,2]
[392844842,1762042240746,-38304.5898861,0.0001498,2]
[392844843,1762042240755,-3249.7435829,0.0001498,2]
[392844844,1762042240764,-150.0,0.0001498,2]
[392844845,1762042240773,-150.0,0.0001498,2]
[392844846,1762042240782,-151.07445959,0.0001498,2]
[392844847,1762042240791,-150.0,0.0001498,2]
[392844848,1762042240800,-150.69426194,0.0001498,2]
[392844849,1762042240809,-150.0,0.0001498,2]
[392844850,1762042240821,-251.89570581,0.0001498,2]
[392844851,1762042240830,-150.0,0.0001498,2]
[392844852,1762042240839,-150.0,0.0001498,2]
[392844853,1762042240849,-150.0,0.0001498,2]
[392844854,1762042240863,-151.75498366,0.0001498,2]
[392844855,1762042240872,-11487.7673586,0.0001498,2]
[392844856,1762042240881,-151.0,0.0001498,2]
[392844857,1762042240891,-151.0,0.0001498,2]
[392844858,1762042240901,-151.0,0.0001498,2]
[392844859,1762042240910,-151.0,0.0001498,2]
[392844860,1762042240919,-151.37609556,0.0001498,2]
[392844861,1762042240928,-151.0,0.0001498,2]
[392844862,1762042240939,-151.0,0.0001498,2]
[392844863,1762042240949,-151.723748,0.0001498,2]
[392844864,1762042240958,-150.0,0.0001498,2]
[392844866,1762042240967,-150.0,0.0001498,2]
[392844867,1762042240976,-150.0,0.0001498,2]
[392844869,1762042240985,-150.0,0.0001498,2]
[392844871,1762042240994,-151.0,0.0001498,2]
[392844872,1762042241004,-151.0,0.0001498,2]
[392844873,1762042241013,-151.0,0.0001498,2]
[392844874,1762042241022,-151.0,0.0001498,2]
[392844875,1762042241033,-151.0,0.0001498,2]
[392844876,1762042241042,-151.0,0.0001498,2]
[392844877,1762042241051,-151.0,0.0001498,2]
[392844878,1762042241060,-151.0,0.0001498,2]
[392844879,1762042241069,-151.0,0.0001498,2]
[392844880,1762042241079,-195.181761,0.0001498,2]
[392844881,1762042241089,-151.0,0.0001498,2]
[392844882,1762042241098,-151.0,0.0001498,2]
[392844883,1762042241107,-151.0,0.0001498,2]
[392844884,1762042241116,-151.0,0.0001498,2]
[392844885,1762042241126,-151.0,0.0001498,2]
[392844886,1762042241137,-151.0,0.0001498,2]
[392844887,1762042241148,-151.0,0.0001498,2]
[392844888,1762042241157,-168.685544,0.0001498,2]
[392844889,1762042241166,-151.0,0.0001498,2]
[392844890,1762042241175,-151.0,0.0001498,2]
[392844891,1762042241186,-151.0,0.0001498,2]
[392844892,1762042241196,-151.0,0.0001498,2]
[392844893,1762042241205,-151.0,0.0001498,2]
[392844894,1762042241214,-151.0,0.0001498,2]
[392844895,1762042241224,-151.0,0.0001498,2]
[392844896,1762042241234,-151.0,0.0001498,2]
[392844897,1762042241243,-151.0,0.0001498,2]
[392844898,1762042241252,-151.0,0.0001498,2]
[392844899,1762042241262,-232.378947,0.0001498,2]
[392844900,1762042241272,-151.0,0.0001498,2]
[392844901,1762042241281,-151.0,0.0001498,2]
[392844902,1762042241290,-151.0,0.0001498,2]
[392844903,1762042241300,-151.0,0.0001498,2]
[392844904,1762042241310,-151.0,0.0001498,2]
[392844905,1762042241320,-151.0,0.0001498,2]
[392844906,1762042241329,-151.0,0.0001498,2]
[392844907,1762042241337,-1180.45,0.0001498,2]
[392844908,1762042241347,-151.0,0.0001498,2]
[392844909,1762042241357,-151.0,0.0001498,2]
[392844910,1762042241366,-162.099972,0.0001498,2]
[392844911,1762042241376,-162.099972,0.0001498,2]
[392844912,1762042241387,-162.099972,0.0001498,2]
[392844913,1762042241396,-172.520904,0.0001498,2]
[392844914,1762042241406,-162.099972,0.0001498,2]
[392844915,1762042241416,-162.099972,0.0001498,2]
[392844916,1762042241426,-162.099972,0.0001498,2]
[392844917,1762042241436,-162.099972,0.0001498,2]
[392844918,1762042241445,-162.099972,0.0001498,2]
[392844919,1762042241454,-151.0,0.0001498,2]
[392844920,1762042241463,-151.0,0.0001498,2]
[392844921,1762042241473,-151.0,0.0001498,2]
[392844922,1762042241482,-151.0,0.0001498,2]
[392844923,1762042241492,-151.0,0.0001498,2]
[392844924,1762042241501,-151.0,0.0001498,2]
[392844925,1762042241510,-151.0,0.0001498,2]
[392844926,1762042241520,-151.0,0.0001498,2]
[392844927,1762042241529,-239.290061,0.0001498,2]
[392844928,1762042241539,-151.0,0.0001498,2]
[392844929,1762042241548,-271.565719,0.0001498,2]
[392844930,1762042241557,-151.0,0.0001498,2]
[392844931,1762042241566,-151.0,0.0001498,2]
[392844932,1762042241575,-4846.2517343,0.0001498,2]
[392844933,1762042241584,-151.0,0.0001498,2]
[392844934,1762042241593,-151.0,0.0001498,2]
[392844935,1762042241603,-248.846832,0.0001498,2]
[392844936,1762042241612,-151.0,0.0001498,2]
[392844937,1762042241621,-151.0,0.0001498,2]
[392844938,1762042241630,-151.0,0.0001498,2]
[392844939,1762042241639,-151.0,0.0001498,2]
[392844940,1762042241648,-151.0,0.0001498,2]
[392844941,1762042241657,-165.01461,0.0001498,2]
[392844942,1762042241666,-151.0,0.0001498,2]
[392844943,1762042241675,-151.0,0.0001498,2]
[392844944,1762042241684,-151.0,0.0001498,2]
[392844945,1762042241693,-189.260657,0.0001498,2]
[392844946,1762042241703,-57326.6295978,0.0001498,2]
[392844947,1762042241712,-151.0,0.0001498,2]
[392844948,1762042241721,-151.0,0.0001498,2]
[392844949,1762042241730,-151.0,0.0001498,2]
[392844950,1762042241739,-151.0,0.0001498,2]
[392844951,1762042241748,-151.0,0.0001498,2]
[392844952,1762042241757,-151.0,0.0001498,2]
[392844953,1762042241766,-151.0,0.0001498,2]
[392844954,1762042241775,-299.152608,0.0001498,2]
[392844955,1762042241784,-151.0,0.0001498,2]
[392844956,1762042241793,-151.0,0.0001498,2]
[392844957,1762042241802,-151.0,0.0001498,2]
[392844958,1762042241811,-151.0,0.0001498,2]
[392844959,1762042241820,-151.0,0.0001498,2]
[392844960,1762042241829,-151.0,0.0001498,2]
[392844961,1762042241838,-169.472571,0.0001498,2]
[392844962,1762042241847,-159.380911,0.0001498,2]
[392844963,1762042241859,-477.34778997,0.00014986,2]
[392844964,1762042241868,-150.0,0.0001499,2]
[392844965,1762042241877,-150.0,0.0001499,2]
[392844966,1762042241886,-150.0,0.0001499,2]
[392844967,1762042241895,-150.0,0.0001499,2]
[392844968,1762042241903,-150.0,0.0001499,2]
[392844969,1762042241912,-150.0,0.0001499,2]
[392844970,1762042241921,-197.13100696,0.0001499,2]
[392844971,1762042241930,-166.66,0.00014996,2]
[392844972,1762042241940,-152.0,0.00014996,2]
[392844973,1762042241950,-152.0,0.00014996,2]
[392844974,1762042241959,-152.0,0.00014996,2]
[392844975,1762042241969,-302.54022849,0.00014996,2]
[392844976,1762042241978,-152.0,0.00014997,2]
[392844977,1762042241987,-152.0,0.00014997,2]
[392844978,1762042241996,-181.10464866,0.00014997,2]
[392844979,1762042242005,-152.0,0.00014997,2]
[392844980,1762042242014,-152.0,0.00014997,2]
[392844981,1762042242023,-152.0,0.00014997,2]
[392844982,1762042242032,-217.6882612,0.00014997,2]
[392844983,1762042242041,-152.0,0.00014997,2]
[392844984,1762042242050,-152.0,0.00014997,2]
[392844985,1762042242059,-152.0,0.00014997,2]
[392844986,1762042242068,-152.0,0.00014997,2]
[392844987,1762042242077,-152.0,0.00014997,2]
[392844988,1762042242086,-152.0,0.00014997,2]
[392844989,1762042242095,-152.0,0.00014997,2]
[392844990,1762042242104,-152.0,0.00014997,2]
[392844991,1762042242114,-152.0,0.00014997,2]
[392844992,1762042242123,-152.0,0.00014997,2]
[392844993,1762042242131,-152.0,0.00014997,2]
[392844994,1762042242140,-152.0,0.00014997,2]
[392844995,1762042242150,-152.0,0.00014997,2]
[392844996,1762042242159,-152.0,0.00014997,2]
[392844997,1762042242168,-152.0,0.00014997,2]
[392844998,1762042242177,-150.0,0.00014999,2]
[392844999,1762042242186,-151.0,0.00014999,2]
[392845000,1762042242195,-151.0,0.00014999,2]
[392845001,1762042242204,-1000.6278,0.00014999,2]
[392845002,1762042242213,-825.0,0.00014999,2]
[392845003,1762042242222,-152.0,0.00014999,2]
[392845004,1762042242231,-152.0,0.00014999,2]
[392845005,1762042242240,-572.53483274,0.00014999,2]
[392845006,1762042242249,-152.0,0.00014999,2]
[392845007,1762042242258,-152.0,0.00014999,2]
[392845008,1762042242267,-152.0,0.00014999,2]
[392845009,1762042242275,-152.0,0.00014999,2]
[392845010,1762042242285,-152.0,0.00014999,2]
[392845011,1762042242294,-152.0,0.00014999,2]
[392845012,1762042242303,-1000.0,0.00014999,2]
[392845013,1762042242312,-152.0,0.00014999,2]
[392845014,1762042242321,-1000.0,0.00014999,2]
[392845015,1762042242330,-152.0,0.00014999,2]
[392845016,1762042242339,-1000.0,0.00014999,2]
[392845017,1762042242349,-1000.0,0.00014999,2]
[392845018,1762042242358,-152.0,0.00014999,2]
[392845019,1762042242367,-1000.0,0.00014999,2]
[392845020,1762042242376,-152.0,0.00014999,2]
[392845021,1762042242385,-1000.0,0.00014999,2]
[392845022,1762042242395,-1000.0,0.00014999,2]
[392845023,1762042242404,-1000.0,0.00014999,2]
[392845024,1762042242413,-1000.0,0.00014999,2]
[392845025,1762042242422,-1000.0,0.00014999,2]
[392845026,1762042242431,-1000.0,0.00014999,2]
[392845027,1762042242440,-1000.0,0.00014999,2]
[392845028,1762042242449,-1000.0,0.00014999,2]
[392845029,1762042242458,-1000.0,0.00014999,2]
[392845030,1762042242468,-1000.0,0.00014999,2]
[392845031,1762042242477,-1000.0,0.00014999,2]
[392845032,1762042242486,-387.39869309,0.00014999,2]
[392845033,1762042242496,-2877015.76707078,0.00015,2]
[392845034,1762042242510,-2176.63725455,0.00015,2]
[392845035,1762042242521,-1040.735736,0.00015,2]
[392845045,1762042246369,176.79,0.00011511,2]
[392845046,1762042246487,-1187.0,0.0001497,2]
[392845047,1762042246497,-245.89101252,0.00014999,2]
[392845048,1762042246506,-5173.54788102,0.00015,2]
[392845049,1762042246517,-14063.0228977,0.00015,2]
[392845050,1762042246632,-2858.26392624,0.00015,2]
[392845051,1762042277524,168.0,0.00014555,2]
[392845052,1762042288320,168.0,0.00014427,2]
[392845053,1762042290979,224.92992325,0.000145,2]
[392845054,1762042291002,1775.07007675,0.000145,2]
[392845055,1762042296119,500.0,0.00031232,120]
[392845056,1762042296375,500.0,0.00031506,120]
[392845058,1762042452997,999.0,0.00014138,3]
[392845059,1762042473830,1425.0,0.00014788,2]
[392845060,1762042473947,1425.0,0.00014778,2]
[392845061,1762042508076,200.0,0.00014108,2]
[392845062,1762042599519,272.09348786,0.00031507,120]
[392845063,1762042614164,250.0,0.00014057,2]
[392845064,1762042621568,300.0,0.00014799,2]
[392845065,1762042659334,1200.0,0.00014799,2]
[392845066,1762042801140,300.0,0.00014799,2]
[392845067,1762042801191,1200.0,0.00014799,2]
[392845068,1762043101287,1200.0,0.00014799,2]
[392845069,1762043106687,219.84184472,0.00013488,2]
[392845070,1762043133958,1425.0,0.00014752,2]
[392845071,1762043177592,541.15,0.00014005,2]
[392845076,1762043220136,500.0,0.00031232,120]
[392845077,1762043220350,500.0,0.00031506,120]
[392845079,1762043269040,829.67,0.00014003,2]
[392845093,1762043373634,1425.0,0.00014726,2]
[392845096,1762043401131,909.34815528,0.00014799,2]
[392845097,1762043401156,290.65184472,0.00014799,2]
[392845104,1762043425137,844.09,0.00013699,2]
[392845108,1762043431403,-413.8620027,0.000148,2]
[392845110,1762043431415,-271.09,0.000148,2]
[392845111,1762043431515,-9315.0579973,0.000148,2]
[392845112,1762043431525,-10000.01,0.000148,2]
[392845113,1762043431535,-250.0,0.00014806,2]
[392845114,1762043431545,-1425.0,0.00014821,2]
[392845115,1762043431555,-1425.0,0.00014837,2]
[392845116,1762043431566,-1425.0,0.0001485,2]
[392845117,1762043431576,-170.28482,0.0001485,2]
[392845118,1762043431586,-1425.0,0.00014877,2]
[392845119,1762043431595,-1000.0,0.0001488,2]
[392845120,1762043431604,-153.06827006,0.0001489,2]
[392845121,1762043431613,-153.06827002,0.00014893,2]
[392845122,1762043431623,-153.06827002,0.00014895,2]
[392845123,1762043431632,-153.06827002,0.00014898,2]
[392845124,1762043431641,-419.63519322,0.000149,2]
[392845125,1762043431650,-5000.0,0.000149,2]
[392845126,1762043431660,-153.06827002,0.000149,2]
[392845127,1762043431669,-831.0662574,0.000149,2]
[392845128,1762043431678,-203.95071823,0.000149,2]
[392845129,1762043431692,-449.19789294,0.000149,2]
[392845130,1762043431702,-1425.0,0.0001491,2]
[392845131,1762043431715,-982.66473216,0.00014945,2]
[392845132,1762043431731,-190.66811983,0.00014945,2]
[392845133,1762043431740,-1423.0,0.00014959,2]
[392845134,1762043431750,-1385.33188017,0.0001497,2]
[392845155,1762043437452,-5266.66811983,0.0001497,2]
[392845156,1762043437462,-3420.0,0.0001497,2]
[392845157,1762043437472,-820.0,0.0001497,2]
[392845158,1762043437482,-2140.0,0.0001497,2]
[392845159,1762043437492,-197.13100696,0.0001497,2]
[392845160,1762043437503,-150.0,0.00014972,2]
[392845161,1762043437512,-500.0,0.00014973,2]
[392845162,1762043437522,-308.08496528,0.00014973,2]
[392845163,1762043437533,-500.0,0.00014973,2]
[392845164,1762043437543,-123.80468995,0.00014973,2]
[392845165,1762043437554,-377.52858158,0.00014973,2]
[392845166,1762043437565,-500.0,0.00014973,2]
[392845167,1762043437576,-500.0,0.00014973,2]
[392845168,1762043437586,-500.0,0.00014973,2]
[392845169,1762043437596,-501.38030097,0.00014973,2]
[392845170,1762043437605,-506.56477571,0.00014973,2]
[392845171,1762043437614,-500.0,0.00014973,2]
[392845172,1762043437623,-500.0,0.00014973,2]
[392845173,1762043437632,-1150.849,0.00014978,2]
[392845174,1762043437641,-500.0,0.00014979,2]
[392845175,1762043437649,-500.0,0.00014979,2]
[392845176,1762043437658,-417.09066531,0.00014979,2]
[392845177,1762043437667,-501.01262512,0.00014979,2]
[392845179,1762043437678,-500.0,0.00014979,2]
[392845180,1762043437691,-500.0,0.00014979,2]
[392845181,1762043437701,-500.0,0.00014979,2]
[392845182,1762043437711,-288.94517445,0.00014979,2]
[392845183,1762043437720,-1175.496172,0.0001498,2]
[392845184,1762043437743,-2375.25971722,0.0001498,2]
[392845186,1762043439515,-1079.63959799,0.0001498,2]
[392845187,1762043439527,-262.55536435,0.0001498,2]
[392845188,1762043439538,-1130.9,0.0001498,2]
[392845189,1762043439728,-1826254.33644354,0.0001498,2]
[392845190,1762043439739,-1314.0,0.0001499,2]
[392845191,1762043439750,-1594.0,0.0001499,2]
[392845192,1762043439759,-819.0,0.0001499,2]
[392845193,1762043439770,-1272.0,0.0001499,2]
[392845194,1762043439781,-1187.0,0.0001499,2]
[392845195,1762043439790,-905.0,0.0001499,2]
[392845196,1762043439800,-477.34778997,0.0001499,2]
[392845197,1762043439809,-642.94,0.00014991,2]
[392845198,1762043439819,-496.47127164,0.00014991,2]
[392845199,1762043439828,-150.0,0.00014999,2]
[392845200,1762043439838,-1082.08,0.00014999,2]
[392845201,1762043439848,-150.0,0.00014999,2]
[392845202,1762043439857,-150.0,0.00014999,2]
[392845203,1762043439867,-150.0,0.00014999,2]
[392845204,1762043439877,-150.0,0.00014999,2]
[392845205,1762043439886,-150.0,0.00014999,2]
[392845206,1762043439896,-150.0,0.00014999,2]
[392845207,1762043439905,-500.0,0.00014999,2]
[392845208,1762043439915,-500.0,0.00014999,2]
[392845209,1762043439925,-500.0,0.00014999,2]
[392845210,1762043439934,-500.0,0.00014999,2]
[392845211,1762043439943,-381.18930875,0.00014999,2]
[392845212,1762043439952,-150.0,0.00014999,2]
[392845213,1762043439961,-150.0,0.00014999,2]
[392845214,1762043439971,-150.0,0.00014999,2]
[392845215,1762043439980,-150.0,0.00014999,2]
[392845216,1762043439989,-150.0,0.00014999,2]
[392845217,1762043440245,-150.0,0.00014999,2]
[392845218,1762043440256,-4458.28082449,0.00014999,2]
[392845219,1762043440265,-1000.0,0.00014999,2]
[392845220,1762043440275,-1000.0,0.00014999,2]
[392845221,1762043440284,-1000.0,0.00014999,2]
[392845222,1762043440293,-1000.0,0.00014999,2]
[392845223,1762043440303,-1000.0,0.00014999,2]
[392845224,1762043440312,-1000.0,0.00014999,2]
[392845225,1762043440321,-1000.0,0.00014999,2]
[392845226,1762043440330,-1000.0,0.00014999,2]
[392845227,1762043440340,-1000.0,0.00014999,2]
[392845228,1762043440350,-1000.0,0.00014999,2]
[392845229,1762043440362,-1000.0,0.00014999,2]
[392845230,1762043440372,-1000.0,0.00014999,2]
[392845231,1762043440382,-1000.0,0.00014999,2]
[392845232,1762043440391,-1000.0,0.00014999,2]
[392845233,1762043440400,-1000.0,0.00014999,2]
[392845234,1762043440410,-1000.0,0.00014999,2]
[392845235,1762043440419,-387.39869309,0.00014999,2]
[392845236,1762043440428,-500.0,0.00014999,2]
[392845237,1762043440438,-500.0,0.00014999,2]
[392845238,1762043440447,-500.0,0.00014999,2]
[392845239,1762043440457,-500.0,0.00014999,2]
[392845240,1762043440465,-500.0,0.00014999,2]
[392845241,1762043440475,-500.0,0.00014999,2]
[392845242,1762043440485,-500.0,0.00014999,2]
[392845243,1762043440495,-500.0,0.00014999,2]
[392845244,1762043440505,-500.0,0.00014999,2]
[392845245,1762043440516,-500.0,0.00014999,2]
[392845246,1762043440525,-500.0,0.00014999,2]
[392845247,1762043440535,-500.0,0.00014999,2]
[392845248,1762043440544,-150.0,0.00014999,2]
[392845249,1762043440554,-500.0,0.00014999,2]
[392845250,1762043440564,-152.0,0.00014999,2]
[392845251,1762043440574,-152.0,0.00014999,2]
[392845252,1762043440584,-152.0,0.00014999,2]
[392845253,1762043440594,-152.0,0.00014999,2]
[392845254,1762043440604,-152.0,0.00014999,2]
[392845255,1762043440614,-152.0,0.00014999,2]
[392845256,1762043440624,-152.0,0.00014999,2]
[392845257,1762043440633,-825.0,0.00014999,2]
[392845258,1762043440642,-152.0,0.00014999,2]
[392845259,1762043440651,-152.0,0.00014999,2]
[392845260,1762043440662,-572.53483274,0.00014999,2]